[Event "Titled Tuesday Blitz October 11 Early 2022"]
[White "Costachi, Mihnea"]
[Black "Gabrielian, Artur"]
[WhiteFideId "1217518"]
[BlackFideId "4131002"]
[WhiteElo "2437"]
[BlackElo "2432"]
[Result "1-0"]
[Round "10"]
[TimeControl "180+1"]
[Date "2022.10.11"]
[WhiteClock "0:01:35"]
[BlackClock "0:00:16"]

1. d4 {[%clk 0:03:00]}  Nf6 {[%clk 0:02:58]} 2. c4 {[%clk 0:02:59]}  c5 {[%clk 0:02:55]} 3. d5 {[%clk 0:02:59]}  e6 {[%clk 0:02:56]} 4. Nc3 {[%clk 0:02:59]}  exd5 {[%clk 0:02:56]} 5. cxd5 {[%clk 0:03:00]}  d6 {[%clk 0:02:57]} 6. Nf3 {[%clk 0:03:01]}  g6 {[%clk 0:02:57]} 7. Nd2 {[%clk 0:03:01]}  Nbd7 {[%clk 0:02:56]} 8. e4 {[%clk 0:03:00]}  Bg7 {[%clk 0:02:56]} 9. Be2 {[%clk 0:03:01]}  O-O {[%clk 0:02:56]} 10. O-O {[%clk 0:03:01]}  Re8 {[%clk 0:02:56]} 11. h3 {[%clk 0:03:01]}  a6 {[%clk 0:02:51]} 12. a4 {[%clk 0:03:01]}  Rb8 {[%clk 0:02:48]} 13. Re1 {[%clk 0:02:59]}  h6 {[%clk 0:02:40]} 14. Bf1 {[%clk 0:02:59]}  g5 {[%clk 0:02:40]} 15. Nc4 {[%clk 0:02:58]}  Ne5 {[%clk 0:02:38]} 16. Nxe5 {[%clk 0:02:58]}  Rxe5 {[%clk 0:02:39]} 17. f4 {[%clk 0:02:58]}  gxf4 {[%clk 0:02:38]} 18. Bxf4 {[%clk 0:02:59]}  Nh7 {[%clk 0:02:32]} 19. Bxe5 {[%clk 0:02:51]}  Bxe5 {[%clk 0:02:31]} 20. Qh5 {[%clk 0:02:51]}  Qf6 {[%clk 0:02:29]} 21. Qf3 {[%clk 0:02:30]}  Qg7 {[%clk 0:02:24]} 22. Kh1 {[%clk 0:02:24]}  Bd7 {[%clk 0:02:07]} 23. Bd3 {[%clk 0:02:22]}  b5 {[%clk 0:02:03]} 24. axb5 {[%clk 0:02:21]}  axb5 {[%clk 0:02:03]} 25. Ra7 {[%clk 0:02:21]}  Be8 {[%clk 0:02:04]} 26. Rf1 {[%clk 0:02:14]}  c4 {[%clk 0:01:59]} 27. Be2 {[%clk 0:02:10]}  b4 {[%clk 0:01:35]} 28. Nd1 {[%clk 0:02:09]}  Ng5 {[%clk 0:01:26]} 29. Qf5 {[%clk 0:01:56]}  c3 {[%clk 0:01:21]} 30. bxc3 {[%clk 0:01:56]}  bxc3 {[%clk 0:01:21]} 31. Rc7 {[%clk 0:01:56]}  Nh7 {[%clk 0:00:19]} 32. Rc8 {[%clk 0:01:48]}  Rxc8 {[%clk 0:00:18]} 33. Qxc8 {[%clk 0:01:49]}  Kf8 {[%clk 0:00:16]} 34. Bb5 {[%clk 0:01:43]}  Qg3 {[%clk 0:00:16]} 35. Qxe8+ {[%clk 0:01:41]}  Kg7 {[%clk 0:00:16]} 36. Rxf7+ {[%clk 0:01:35]} 1-0


[Site "https://www.chess.com"]

[Event "Titled Tuesday Blitz October 11 Early 2022"]
[White "Csonka, Balazs"]
[Black "Gabdrakhmanov, Azat"]
[WhiteFideId "742910"]
[BlackFideId "34189197"]
[WhiteElo "2404"]
[BlackElo "2233"]
[Result "0-1"]
[Round "10"]
[TimeControl "180+1"]
[Date "2022.10.11"]
[WhiteClock "0:00:03"]
[BlackClock "0:00:20"]

1. d4 {[%clk 0:03:00]}  Nf6 {[%clk 0:02:59]} 2. c4 {[%clk 0:03:00]}  g6 {[%clk 0:02:59]} 3. Nc3 {[%clk 0:02:58]}  Bg7 {[%clk 0:03:00]} 4. e4 {[%clk 0:02:46]}  O-O {[%clk 0:02:58]} 5. Nf3 {[%clk 0:02:41]}  d6 {[%clk 0:02:58]} 6. Be2 {[%clk 0:02:42]}  e5 {[%clk 0:02:58]} 7. O-O {[%clk 0:02:40]}  Nc6 {[%clk 0:02:58]} 8. d5 {[%clk 0:02:41]}  Ne7 {[%clk 0:02:58]} 9. b4 {[%clk 0:02:41]}  Nh5 {[%clk 0:02:57]} 10. g3 {[%clk 0:02:39]}  f5 {[%clk 0:02:54]} 11. Ng5 {[%clk 0:02:39]}  Nf6 {[%clk 0:02:54]} 12. Bf3 {[%clk 0:02:40]}  h6 {[%clk 0:02:50]} 13. Ne6 {[%clk 0:02:39]}  Bxe6 {[%clk 0:02:50]} 14. dxe6 {[%clk 0:02:40]}  c6 {[%clk 0:02:50]} 15. b5 {[%clk 0:02:40]}  Qc7 {[%clk 0:02:49]} 16. bxc6 {[%clk 0:02:23]}  bxc6 {[%clk 0:02:48]} 17. Ba3 {[%clk 0:02:21]}  Rad8 {[%clk 0:02:43]} 18. Bg2 {[%clk 0:01:02]}  Qc8 {[%clk 0:02:34]} 19. Bxd6 {[%clk 0:00:57]}  Qxe6 {[%clk 0:02:33]} 20. c5 {[%clk 0:00:58]}  Nc8 {[%clk 0:02:32]} 21. Qb3 {[%clk 0:00:32]}  Qxb3 {[%clk 0:02:25]} 22. axb3 {[%clk 0:00:33]}  Nxd6 {[%clk 0:02:24]} 23. cxd6 {[%clk 0:00:33]}  Rxd6 {[%clk 0:02:21]} 24. exf5 {[%clk 0:00:32]}  gxf5 {[%clk 0:02:14]} 25. Rxa7 {[%clk 0:00:32]}  Rd3 {[%clk 0:02:12]} 26. Rc1 {[%clk 0:00:31]}  Rb8 {[%clk 0:02:03]} 27. Bf1 {[%clk 0:00:26]}  Rd6 {[%clk 0:02:00]} 28. Bc4+ {[%clk 0:00:24]}  Kh8 {[%clk 0:02:00]} 29. Nd1 {[%clk 0:00:19]}  f4 {[%clk 0:01:53]} 30. Nc3 {[%clk 0:00:19]}  Re8 {[%clk 0:01:36]} 31. Re1 {[%clk 0:00:14]}  e4 {[%clk 0:01:03]} 32. gxf4 {[%clk 0:00:07]}  Ng4 {[%clk 0:01:03]} 33. Rxe4 {[%clk 0:00:05]}  Rf8 {[%clk 0:00:47]} 34. Ree7 {[%clk 0:00:05]}  Rg6 {[%clk 0:00:43]} 35. Bd3 {[%clk 0:00:05]}  Bxc3 {[%clk 0:00:21]} 36. Bxg6 {[%clk 0:00:05]}  Nf6 {[%clk 0:00:21]} 37. f5 {[%clk 0:00:05]}  Rd8 {[%clk 0:00:20]} 38. Kg2 {[%clk 0:00:04]}  Bd4 {[%clk 0:00:20]} 39. Rf7 {[%clk 0:00:03]}  Bxa7 {[%clk 0:00:20]} 40. Rxa7 {[%clk 0:00:02]}  Nd5 {[%clk 0:00:20]} 41. Rf7 {[%clk 0:00:02]}  Nf4+ {[%clk 0:00:20]} 42. Kf3 {[%clk 0:00:03]}  Nd5 {[%clk 0:00:20]} 43. Rh7+ {[%clk 0:00:02]}  Kg8 {[%clk 0:00:20]} 44. Rxh6 {[%clk 0:00:03]}  Kg7 {[%clk 0:00:20]} 45. Rh7+ {[%clk 0:00:03]}  Kf6 {[%clk 0:00:21]} 46. Rb7 {[%clk 0:00:03]}  Ke5 {[%clk 0:00:21]} 47. h4 {[%clk 0:00:03]}  Nf6 {[%clk 0:00:20]} 48. h5 {[%clk 0:00:03]}  Rd3+ {[%clk 0:00:20]} 49. Kg2 {[%clk 0:00:03]}  Ng4 {[%clk 0:00:20]} 50. Re7+ {[%clk 0:00:02]}  Kf4 {[%clk 0:00:20]} 51. h6 {[%clk 0:00:01]}  Nxh6 {[%clk 0:00:19]} 52. Kf1 {[%clk 0:00:02]}  Ng4 {[%clk 0:00:18]} 53. Re2 {[%clk 0:00:02]}  Rxb3 {[%clk 0:00:19]} 54. Rc2 {[%clk 0:00:02]}  Rb1+ {[%clk 0:00:19]} 55. Rc1 {[%clk 0:00:02]}  Rxc1+ {[%clk 0:00:19]} 56. Kg2 {[%clk 0:00:03]}  Rc2 {[%clk 0:00:19]} 57. Kh3 {[%clk 0:00:03]}  Rxf2 {[%clk 0:00:19]} 58. Kh4 {[%clk 0:00:03]}  Rh2# {[%clk 0:00:20]} 0-1


[Site "https://www.chess.com"]

[Event "Titled Tuesday Blitz October 11 Early 2022"]
[White "D`Arruda, Ricardo D."]
[Black "Lakshmi C"]
[WhiteFideId "100692"]
[BlackFideId "25035347"]
[WhiteElo "2425"]
[BlackElo "1865"]
[Result "1-0"]
[Round "10"]
[TimeControl "180+1"]
[Date "2022.10.12"]
[WhiteClock "0:01:29"]
[BlackClock "0:00:16"]

1. d4 {[%clk 0:02:53]}  Nf6 {[%clk 0:02:59]} 2. Nf3 {[%clk 0:02:52]}  e6 {[%clk 0:02:58]} 3. c4 {[%clk 0:02:51]}  b6 {[%clk 0:02:57]} 4. Nc3 {[%clk 0:02:51]}  Bb7 {[%clk 0:02:56]} 5. g3 {[%clk 0:02:51]}  Be7 {[%clk 0:02:56]} 6. Bg2 {[%clk 0:02:50]}  O-O {[%clk 0:02:54]} 7. O-O {[%clk 0:02:51]}  Ne4 {[%clk 0:02:54]} 8. Bd2 {[%clk 0:02:49]}  f5 {[%clk 0:02:39]} 9. Rc1 {[%clk 0:02:47]}  Bf6 {[%clk 0:02:38]} 10. d5 {[%clk 0:02:44]}  Nxc3 {[%clk 0:02:31]} 11. Bxc3 {[%clk 0:02:43]}  Qe7 {[%clk 0:02:27]} 12. Nd4 {[%clk 0:02:40]}  Na6 {[%clk 0:02:18]} 13. d6 {[%clk 0:02:34]}  cxd6 {[%clk 0:02:16]} 14. Bxb7 {[%clk 0:02:34]}  Nc5 {[%clk 0:02:16]} 15. Bxa8 {[%clk 0:02:34]}  Rxa8 {[%clk 0:02:15]} 16. Nb5 {[%clk 0:02:32]}  Nb7 {[%clk 0:02:04]} 17. Bxf6 {[%clk 0:02:30]}  gxf6 {[%clk 0:02:04]} 18. Qd2 {[%clk 0:02:26]}  a6 {[%clk 0:02:02]} 19. Nc3 {[%clk 0:02:25]}  Rc8 {[%clk 0:02:01]} 20. b3 {[%clk 0:02:24]}  Kh8 {[%clk 0:01:51]} 21. Rfd1 {[%clk 0:02:23]}  Rc6 {[%clk 0:01:50]} 22. e4 {[%clk 0:02:22]}  fxe4 {[%clk 0:01:45]} 23. Nxe4 {[%clk 0:02:22]}  f5 {[%clk 0:01:42]} 24. Qg5 {[%clk 0:02:14]}  Qxg5 {[%clk 0:01:29]} 25. Nxg5 {[%clk 0:02:15]}  Kg7 {[%clk 0:01:29]} 26. f4 {[%clk 0:02:13]}  h6 {[%clk 0:01:22]} 27. Nf3 {[%clk 0:02:13]}  Nc5 {[%clk 0:01:21]} 28. Nd4 {[%clk 0:02:04]}  Rc7 {[%clk 0:01:19]} 29. Ne2 {[%clk 0:02:00]}  Rc6 {[%clk 0:01:17]} 30. Nc3 {[%clk 0:02:00]}  a5 {[%clk 0:01:09]} 31. Nb5 {[%clk 0:01:58]}  Ne4 {[%clk 0:01:09]} 32. Rd4 {[%clk 0:01:54]}  Kf6 {[%clk 0:01:06]} 33. Rcd1 {[%clk 0:01:53]}  Ke7 {[%clk 0:01:04]} 34. Kg2 {[%clk 0:01:51]}  h5 {[%clk 0:00:48]} 35. h3 {[%clk 0:01:50]}  e5 {[%clk 0:00:28]} 36. fxe5 {[%clk 0:01:46]}  dxe5 {[%clk 0:00:27]} 37. Rxd7+ {[%clk 0:01:46]}  Kf6 {[%clk 0:00:24]} 38. Nd6 {[%clk 0:01:40]}  Nc5 {[%clk 0:00:20]} 39. Ne8+ {[%clk 0:01:29]}  Kg5 {[%clk 0:00:16]} 1-0


[Site "https://www.chess.com"]

[Event "Titled Tuesday Blitz October 11 Early 2022"]
[White "Dardha, Daniel"]
[Black "Zhigalko, Sergei"]
[WhiteFideId "240990"]
[BlackFideId "13502956"]
[WhiteElo "2528"]
[BlackElo "2662"]
[Result "1-0"]
[Round "10"]
[TimeControl "180+1"]
[Date "2022.10.11"]
[WhiteClock "0:00:39"]
[BlackClock "0:00:06"]

1. e4 {[%clk 0:03:00]}  c5 {[%clk 0:02:59]} 2. Nf3 {[%clk 0:03:01]}  Nc6 {[%clk 0:02:59]} 3. Bb5 {[%clk 0:03:00]}  Nf6 {[%clk 0:02:59]} 4. Nc3 {[%clk 0:03:00]}  Qc7 {[%clk 0:02:59]} 5. O-O {[%clk 0:02:57]}  Nd4 {[%clk 0:02:59]} 6. Re1 {[%clk 0:02:54]}  a6 {[%clk 0:02:59]} 7. Bd3 {[%clk 0:02:42]}  Ng4 {[%clk 0:02:45]} 8. g3 {[%clk 0:02:03]}  Nxf3+ {[%clk 0:02:45]} 9. Qxf3 {[%clk 0:02:04]}  Ne5 {[%clk 0:02:46]} 10. Qe3 {[%clk 0:01:56]}  e6 {[%clk 0:02:42]} 11. Bf1 {[%clk 0:01:49]}  d6 {[%clk 0:02:26]} 12. b3 {[%clk 0:01:45]}  Be7 {[%clk 0:02:11]} 13. Bb2 {[%clk 0:01:45]}  O-O {[%clk 0:02:11]} 14. Rad1 {[%clk 0:01:42]}  b5 {[%clk 0:02:10]} 15. Bg2 {[%clk 0:01:40]}  Bb7 {[%clk 0:02:10]} 16. Ne2 {[%clk 0:01:34]}  Rac8 {[%clk 0:02:06]} 17. d4 {[%clk 0:01:30]}  cxd4 {[%clk 0:02:05]} 18. Nxd4 {[%clk 0:01:31]}  Rfd8 {[%clk 0:01:54]} 19. Rd2 {[%clk 0:01:25]}  Qc5 {[%clk 0:01:47]} 20. Red1 {[%clk 0:01:22]}  h6 {[%clk 0:01:46]} 21. h3 {[%clk 0:01:21]}  a5 {[%clk 0:01:27]} 22. Kh2 {[%clk 0:01:19]}  a4 {[%clk 0:01:13]} 23. f4 {[%clk 0:01:13]}  Nc6 {[%clk 0:01:05]} 24. Qe2 {[%clk 0:01:13]}  a3 {[%clk 0:01:00]} 25. Nxc6 {[%clk 0:01:05]}  Bxc6 {[%clk 0:00:58]} 26. Bd4 {[%clk 0:01:04]}  Qb4 {[%clk 0:00:59]} 27. Bb6 {[%clk 0:01:03]}  Re8 {[%clk 0:00:50]} 28. c3 {[%clk 0:01:01]}  Qxc3 {[%clk 0:00:48]} 29. Rc2 {[%clk 0:01:00]}  Qf6 {[%clk 0:00:48]} 30. e5 {[%clk 0:00:52]}  dxe5 {[%clk 0:00:37]} 31. fxe5 {[%clk 0:00:53]}  Qf5 {[%clk 0:00:21]} 32. Bxc6 {[%clk 0:00:43]}  Rf8 {[%clk 0:00:21]} 33. Rf1 {[%clk 0:00:42]}  Qg5 {[%clk 0:00:17]} 34. h4 {[%clk 0:00:40]}  Qf5 {[%clk 0:00:14]} 35. Rxf5 {[%clk 0:00:39]}  exf5 {[%clk 0:00:15]} 36. Bd7 {[%clk 0:00:37]}  Rxc2 {[%clk 0:00:12]} 37. Qxc2 {[%clk 0:00:38]}  f4 {[%clk 0:00:13]} 38. gxf4 {[%clk 0:00:38]}  Bxh4 {[%clk 0:00:13]} 39. e6 {[%clk 0:00:38]}  fxe6 {[%clk 0:00:12]} 40. Bxe6+ {[%clk 0:00:39]}  Kh8 {[%clk 0:00:09]} 41. Bd4 {[%clk 0:00:40]}  Bf6 {[%clk 0:00:09]} 42. Qc5 {[%clk 0:00:40]}  Be7 {[%clk 0:00:05]} 43. Qxe7 {[%clk 0:00:39]}  Re8 {[%clk 0:00:06]} 44. Qxg7# {[%clk 0:00:39]} 1-0


[Site "https://www.chess.com"]

[Event "Titled Tuesday Blitz October 11 Early 2022"]
[White "Drozdowski, Kacper"]
[Black "Aldokhin, Ivan"]
[WhiteFideId "1136720"]
[BlackFideId "24115720"]
[WhiteElo "2485"]
[BlackElo "2313"]
[Result "1-0"]
[Round "10"]
[TimeControl "180+1"]
[Date "2022.10.11"]
[WhiteClock "0:00:41"]
[BlackClock "0:00:03"]

1. e4 {[%clk 0:03:00]}  c5 {[%clk 0:03:00]} 2. Nf3 {[%clk 0:03:00]}  e6 {[%clk 0:03:00]} 3. d4 {[%clk 0:03:00]}  cxd4 {[%clk 0:03:01]} 4. Nxd4 {[%clk 0:03:01]}  a6 {[%clk 0:03:01]} 5. Bd3 {[%clk 0:03:01]}  Qc7 {[%clk 0:03:01]} 6. O-O {[%clk 0:03:01]}  Nf6 {[%clk 0:03:02]} 7. Qe2 {[%clk 0:03:01]}  Bd6 {[%clk 0:03:00]} 8. h3 {[%clk 0:02:59]}  Nc6 {[%clk 0:03:00]} 9. Nf3 {[%clk 0:02:56]}  b5 {[%clk 0:02:49]} 10. a4 {[%clk 0:02:56]}  b4 {[%clk 0:02:30]} 11. Nbd2 {[%clk 0:02:56]}  Bf4 {[%clk 0:02:00]} 12. Nc4 {[%clk 0:02:55]}  Bxc1 {[%clk 0:01:57]} 13. Raxc1 {[%clk 0:02:56]}  d5 {[%clk 0:01:48]} 14. exd5 {[%clk 0:02:52]}  Nxd5 {[%clk 0:01:48]} 15. Qe4 {[%clk 0:02:47]}  Bb7 {[%clk 0:01:32]} 16. Qg4 {[%clk 0:02:29]}  Nf4 {[%clk 0:01:15]} 17. Rcd1 {[%clk 0:02:17]}  O-O-O {[%clk 0:01:01]} 18. Rfe1 {[%clk 0:02:09]}  h5 {[%clk 0:00:53]} 19. Qg5 {[%clk 0:02:03]}  Nxd3 {[%clk 0:00:39]} 20. Rxd3 {[%clk 0:01:58]}  Rxd3 {[%clk 0:00:38]} 21. cxd3 {[%clk 0:01:59]}  Ne7 {[%clk 0:00:31]} 22. Rc1 {[%clk 0:01:50]}  Kb8 {[%clk 0:00:31]} 23. Na5 {[%clk 0:01:44]}  Qd8 {[%clk 0:00:11]} 24. Qf4+ {[%clk 0:01:34]}  Ka8 {[%clk 0:00:06]} 25. Nxb7 {[%clk 0:01:33]}  Kxb7 {[%clk 0:00:07]} 26. Qxf7 {[%clk 0:01:31]}  Rf8 {[%clk 0:00:05]} 27. Qxe6 {[%clk 0:01:28]}  Rf6 {[%clk 0:00:05]} 28. Qe4+ {[%clk 0:01:27]}  Kb8 {[%clk 0:00:03]} 29. Qxb4+ {[%clk 0:01:27]}  Rb6 {[%clk 0:00:02]} 30. Qf4+ {[%clk 0:01:26]}  Qd6 {[%clk 0:00:03]} 31. Qf8+ {[%clk 0:01:25]}  Ka7 {[%clk 0:00:03]} 32. Qxg7 {[%clk 0:01:20]}  Rb7 {[%clk 0:00:02]} 33. Qc3 {[%clk 0:01:17]}  Nd5 {[%clk 0:00:03]} 34. Qd4+ {[%clk 0:01:15]}  Ka8 {[%clk 0:00:03]} 35. Rc8+ {[%clk 0:01:14]}  Rb8 {[%clk 0:00:04]} 36. Rxb8+ {[%clk 0:01:12]}  Kxb8 {[%clk 0:00:05]} 37. Qe5 {[%clk 0:01:08]}  Qxe5 {[%clk 0:00:05]} 38. Nxe5 {[%clk 0:01:08]}  Kc7 {[%clk 0:00:06]} 39. g4 {[%clk 0:00:57]}  hxg4 {[%clk 0:00:06]} 40. hxg4 {[%clk 0:00:58]}  Kd6 {[%clk 0:00:06]} 41. d4 {[%clk 0:00:57]}  Nf4 {[%clk 0:00:05]} 42. Kf1 {[%clk 0:00:56]}  Kd5 {[%clk 0:00:05]} 43. g5 {[%clk 0:00:48]}  Kxd4 {[%clk 0:00:05]} 44. g6 {[%clk 0:00:48]}  Ne6 {[%clk 0:00:04]} 45. Nd7 {[%clk 0:00:47]}  Kd5 {[%clk 0:00:02]} 46. a5 {[%clk 0:00:45]}  Kc6 {[%clk 0:00:01]} 47. Nf8 {[%clk 0:00:44]}  Ng7 {[%clk 0:00:01]} 48. f4 {[%clk 0:00:43]}  Kd6 {[%clk 0:00:01]} 49. Ke2 {[%clk 0:00:41]}  Ke7 {[%clk 0:00:02]} 50. Nh7 {[%clk 0:00:41]}  Ne6 {[%clk 0:00:01]} 51. Kf3 {[%clk 0:00:40]}  Nd4+ {[%clk 0:00:01]} 52. Ke4 {[%clk 0:00:40]}  Ne6 {[%clk 0:00:02]} 53. f5 {[%clk 0:00:41]}  Nc5+ {[%clk 0:00:02]} 54. Ke5 {[%clk 0:00:40]}  Nd3+ {[%clk 0:00:02]} 55. Ke4 {[%clk 0:00:40]}  Nxb2 {[%clk 0:00:03]} 56. f6+ {[%clk 0:00:40]}  Ke6 {[%clk 0:00:03]} 57. f7 {[%clk 0:00:40]}  Nc4 {[%clk 0:00:03]} 58. f8=Q {[%clk 0:00:40]}  Nd6+ {[%clk 0:00:03]} 59. Kd3 {[%clk 0:00:41]} 1-0


[Site "https://www.chess.com"]

[Event "Titled Tuesday Blitz October 11 Early 2022"]
[White "Goryachkina, Aleksandra"]
[Black "Cnejev, Vladimir-Alexandru"]
[WhiteFideId "4147103"]
[BlackFideId "1260898"]
[WhiteElo "2484"]
[BlackElo "2193"]
[Result "1-0"]
[Round "10"]
[TimeControl "180+1"]
[Date "2022.10.12"]
[WhiteClock "0:00:53"]
[BlackClock "0:00:04"]

1. e4 {[%clk 0:03:00]}  e5 {[%clk 0:02:59]} 2. Nf3 {[%clk 0:02:59]}  Nc6 {[%clk 0:02:59]} 3. Nc3 {[%clk 0:02:55]}  Nf6 {[%clk 0:02:56]} 4. d4 {[%clk 0:02:54]}  exd4 {[%clk 0:02:56]} 5. Nxd4 {[%clk 0:02:55]}  Bb4 {[%clk 0:02:57]} 6. Nxc6 {[%clk 0:02:55]}  bxc6 {[%clk 0:02:57]} 7. Bd3 {[%clk 0:02:55]}  O-O {[%clk 0:02:58]} 8. O-O {[%clk 0:02:55]}  d5 {[%clk 0:02:59]} 9. exd5 {[%clk 0:02:55]}  cxd5 {[%clk 0:02:59]} 10. h3 {[%clk 0:02:54]}  c6 {[%clk 0:02:55]} 11. Qf3 {[%clk 0:02:54]}  Re8 {[%clk 0:02:53]} 12. Bg5 {[%clk 0:02:43]}  h6 {[%clk 0:02:50]} 13. Bh4 {[%clk 0:02:41]}  Bd6 {[%clk 0:02:26]} 14. Rfe1 {[%clk 0:02:35]}  Be6 {[%clk 0:02:06]} 15. Ne2 {[%clk 0:02:30]}  Rb8 {[%clk 0:01:54]} 16. b3 {[%clk 0:02:27]}  c5 {[%clk 0:01:43]} 17. Rad1 {[%clk 0:02:17]}  g5 {[%clk 0:01:24]} 18. Bg3 {[%clk 0:02:15]}  g4 {[%clk 0:01:21]} 19. Qe3 {[%clk 0:02:12]}  Kg7 {[%clk 0:01:13]} 20. Bxd6 {[%clk 0:01:59]}  Qxd6 {[%clk 0:01:14]} 21. Nf4 {[%clk 0:02:00]}  Bf5 {[%clk 0:00:58]} 22. Qg3 {[%clk 0:01:53]}  Qd7 {[%clk 0:00:42]} 23. hxg4 {[%clk 0:01:29]}  Bxd3 {[%clk 0:00:37]} 24. Nxd3 {[%clk 0:01:24]}  Ne4 {[%clk 0:00:14]} 25. Qf4 {[%clk 0:01:23]}  Nc3 {[%clk 0:00:09]} 26. Ne5 {[%clk 0:01:04]}  Nxd1 {[%clk 0:00:06]} 27. Nxd7 {[%clk 0:01:01]}  Rxe1+ {[%clk 0:00:06]} 28. Kh2 {[%clk 0:01:01]}  Rb7 {[%clk 0:00:05]} 29. Qf6+ {[%clk 0:00:57]}  Kg8 {[%clk 0:00:05]} 30. Qd8+ {[%clk 0:00:54]}  Kg7 {[%clk 0:00:04]} 31. Qf8+ {[%clk 0:00:53]}  Kg6 {[%clk 0:00:04]} 32. Qg8# {[%clk 0:00:53]} 1-0


[Site "https://www.chess.com"]

[Event "Titled Tuesday Blitz October 11 Early 2022"]
[White "Haitin, Ilja"]
[Black "Orlov, Georgi"]
[WhiteFideId "4501764"]
[BlackFideId "2011271"]
[WhiteElo "2221"]
[BlackElo "2579"]
[Result "1-0"]
[Round "10"]
[TimeControl "180+1"]
[Date "2022.10.12"]
[WhiteClock "0:00:26"]
[BlackClock "0:01:43"]

1. e4 {[%clk 0:03:00]}  d6 {[%clk 0:02:56]} 2. f4 {[%clk 0:02:59]}  Nf6 {[%clk 0:02:57]} 3. d3 {[%clk 0:02:58]}  c5 {[%clk 0:02:56]} 4. Nf3 {[%clk 0:02:57]}  Nc6 {[%clk 0:02:56]} 5. g3 {[%clk 0:02:58]}  g6 {[%clk 0:02:56]} 6. Bg2 {[%clk 0:02:59]}  Bg7 {[%clk 0:02:57]} 7. O-O {[%clk 0:02:59]}  O-O {[%clk 0:02:57]} 8. a4 {[%clk 0:02:52]}  a6 {[%clk 0:02:56]} 9. Qe1 {[%clk 0:02:51]}  Rb8 {[%clk 0:02:55]} 10. a5 {[%clk 0:02:49]}  Nd7 {[%clk 0:02:52]} 11. g4 {[%clk 0:02:23]}  e6 {[%clk 0:02:48]} 12. Ra2 {[%clk 0:02:02]}  Nb4 {[%clk 0:02:46]} 13. Ra4 {[%clk 0:01:51]}  Nxc2 {[%clk 0:02:45]} 14. Qf2 {[%clk 0:01:49]}  Nd4 {[%clk 0:02:43]} 15. Nxd4 {[%clk 0:01:49]}  cxd4 {[%clk 0:02:41]} 16. f5 {[%clk 0:01:41]}  exf5 {[%clk 0:02:38]} 17. exf5 {[%clk 0:01:38]}  Nc5 {[%clk 0:02:38]} 18. Ra3 {[%clk 0:01:37]}  gxf5 {[%clk 0:02:15]} 19. gxf5 {[%clk 0:01:33]}  Qf6 {[%clk 0:02:11]} 20. Nd2 {[%clk 0:01:29]}  Kh8 {[%clk 0:02:04]} 21. b4 {[%clk 0:01:27]}  Nd7 {[%clk 0:02:03]} 22. Ne4 {[%clk 0:01:26]}  Qe5 {[%clk 0:01:59]} 23. f6 {[%clk 0:01:22]}  Nxf6 {[%clk 0:01:59]} 24. Nxf6 {[%clk 0:01:21]}  Be6 {[%clk 0:01:54]} 25. Qh4 {[%clk 0:01:12]}  Bxf6 {[%clk 0:01:52]} 26. Qxf6+ {[%clk 0:00:57]}  Qxf6 {[%clk 0:01:52]} 27. Rxf6 {[%clk 0:00:57]}  Rg8 {[%clk 0:01:52]} 28. Bf4 {[%clk 0:00:44]}  Rbc8 {[%clk 0:01:49]} 29. Bxd6 {[%clk 0:00:40]}  Rc1+ {[%clk 0:01:43]} 30. Rf1 {[%clk 0:00:29]}  Rc2 {[%clk 0:01:43]} 31. Be5+ {[%clk 0:00:26]} 1-0


[Site "https://www.chess.com"]

[Event "Titled Tuesday Blitz October 11 Early 2022"]
[White "Hartikainen, Jarmo"]
[Black "Sonnenschein, Philipp"]
[WhiteFideId "503134"]
[BlackFideId "16250877"]
[WhiteElo "2167"]
[BlackElo "2225"]
[Result "0-1"]
[Round "10"]
[TimeControl "180+1"]
[Date "2022.10.12"]
[WhiteClock "0:00:09"]
[BlackClock "0:00:46"]

1. e4 {[%clk 0:03:00]}  c6 {[%clk 0:02:58]} 2. d4 {[%clk 0:03:00]}  d5 {[%clk 0:02:59]} 3. Nc3 {[%clk 0:03:00]}  dxe4 {[%clk 0:02:59]} 4. Nxe4 {[%clk 0:03:00]}  Nf6 {[%clk 0:03:00]} 5. Nxf6+ {[%clk 0:03:00]}  exf6 {[%clk 0:03:01]} 6. Bf4 {[%clk 0:03:00]}  Bd6 {[%clk 0:02:58]} 7. Qf3 {[%clk 0:03:00]}  O-O {[%clk 0:02:57]} 8. Bd3 {[%clk 0:03:00]}  Re8+ {[%clk 0:02:56]} 9. Ne2 {[%clk 0:03:00]}  Bxf4 {[%clk 0:02:48]} 10. Qxf4 {[%clk 0:02:59]}  Nd7 {[%clk 0:02:47]} 11. h4 {[%clk 0:02:58]}  Nf8 {[%clk 0:02:47]} 12. h5 {[%clk 0:02:59]}  Ne6 {[%clk 0:02:25]} 13. Qf5 {[%clk 0:02:23]}  Ng5 {[%clk 0:02:24]} 14. Qf4 {[%clk 0:02:14]}  Be6 {[%clk 0:01:59]} 15. a3 {[%clk 0:02:09]}  Bd5 {[%clk 0:01:55]} 16. O-O-O {[%clk 0:01:49]}  Bxg2 {[%clk 0:01:42]} 17. Rhg1 {[%clk 0:01:27]}  Be4 {[%clk 0:01:29]} 18. Ng3 {[%clk 0:01:06]}  Bxd3 {[%clk 0:01:26]} 19. Rxd3 {[%clk 0:01:06]}  Nh3 {[%clk 0:01:23]} 20. Qg4 {[%clk 0:00:41]}  Nxg1 {[%clk 0:01:15]} 21. Nf5 {[%clk 0:00:37]}  Ne2+ {[%clk 0:01:11]} 22. Kb1 {[%clk 0:00:28]}  g6 {[%clk 0:01:11]} 23. Nh6+ {[%clk 0:00:21]}  Kf8 {[%clk 0:01:06]} 24. hxg6 {[%clk 0:00:20]}  fxg6 {[%clk 0:01:01]} 25. Rh3 {[%clk 0:00:16]}  Qxd4 {[%clk 0:00:54]} 26. Qf3 {[%clk 0:00:15]}  Qd1+ {[%clk 0:00:52]} 27. Ka2 {[%clk 0:00:16]}  Nc1+ {[%clk 0:00:52]} 28. Kb1 {[%clk 0:00:13]}  Qxf3 {[%clk 0:00:52]} 29. Rxf3 {[%clk 0:00:14]}  Kg7 {[%clk 0:00:52]} 30. Ng4 {[%clk 0:00:13]}  f5 {[%clk 0:00:52]} 31. Ne3 {[%clk 0:00:11]}  Ne2 {[%clk 0:00:51]} 32. Nc4 {[%clk 0:00:12]}  Nd4 {[%clk 0:00:50]} 33. Rh3 {[%clk 0:00:10]}  Re1+ {[%clk 0:00:49]} 34. Ka2 {[%clk 0:00:10]}  Nxc2 {[%clk 0:00:49]} 35. Nd6 {[%clk 0:00:10]}  b6 {[%clk 0:00:47]} 36. Rc3 {[%clk 0:00:10]}  Nd4 {[%clk 0:00:46]} 37. Rc4 {[%clk 0:00:09]}  c5 {[%clk 0:00:46]} 0-1


[Site "https://www.chess.com"]